{"text_format":"1","workbook":"xlsx","n_sheets":3,"sheets":["Инвентаризация","Накладная","Отчет"],"not_rendered":{"charts":0,"images":0,"macros":1,"external_links":0,"defined_names":14,"comments":0,"pivot_tables":0},"unopened":[],"bounds":{"document_bytes":16777216,"sheet_cells":100000,"rows_first":2000,"rows_last":500,"rows_between":2000,"halvings":0,"cell_chars":16384,"cell_head_chars":4096},"cells_cut":0,"cells_raw":0,"read":"whole","date_system":"1900"}

{"sheet":"Инвентаризация","index":0,"n_rows":35,"n_cols":25,"rows_kept":35,"cut":false,"hidden":false,"merged":[[4,12,4,15],[0,1,1,1]]}
[]
[]
[null,null,null,null,null,null,null,null,"Инвентаризация",null,null,null,"Магазин \"Ашан 3\""]
[null,null,null,null,null,null,null,null,null,null,null,null,null,null,null,null,null,null,null,null,null,null,null,"Выручка"]
[null,null,null,null,null,null,null,null,null,null,"дата:",null,"2015-04-09",null,null,null,null,null,null,null,null,null,null,"Скидки"]
[null,null,null,null,null,null,null,null,null,null,null,null,null,null,null,null,null,null,null,null,null,null,null,"Продано",{"$f":"SUM(Y10:Y19)","v":2745}]
[null,null,null,null,null,null,null,null,null,null,null,null,null,null,null,null,null,null,null,null,null,null,null,"Недостача"]
[]
["№","Наименование по накладной","Код\\цвет","Опт","Цена","Принято",1,2,3,4,5,6,7,8,9,10,11,12,13,14,"Брак","Переоц","Остаток","Продано","Сумма"]
[1,"Источники Питания:",null,null,"группа",null,null,null,null,null,null,null,null,null,null,null,null,null,null,null,null,null,null,{"$f":"IF(E10=\"Группа\",\"Группа\",IF(E10=\"+\",\"+\",SUM(F10:T10)-V10-W10))","v":"Группа"},{"$f":"IF(E10=\"Группа\",\"Группа\",IF(E10=\"+\",\"+\",E10*X10))","v":"Группа"}]
[2,"Батарейки",null,null,"+",null,null,null,null,null,null,null,null,null,null,null,null,null,null,null,null,null,null,{"$f":"IF(E11=\"Группа\",\"Группа\",IF(E11=\"+\",\"+\",SUM(F11:T11)-V11-W11))","v":"+"},{"$f":"IF(E11=\"Группа\",\"Группа\",IF(E11=\"+\",\"+\",E11*X11))","v":"+"}]
[3,"Duracell LR06 AA ",null,21.5,45,15,1,null,null,5,null,null,null,null,null,10,null,null,null,null,2,null,null,{"$f":"IF(E12=\"Группа\",\"Группа\",IF(E12=\"+\",\"+\",SUM(F12:T12)-U12-W12))","v":29},{"$f":"IF(E12=\"Группа\",\"Группа\",IF(E12=\"+\",\"+\",E12*X12))","v":1305}]
[4,"Duracell LR03 AAA",null,21.5,45,16,null,2,null,null,null,null,5,null,null,null,10,null,null,null,1,null,null,{"$f":"IF(E13=\"Группа\",\"Группа\",IF(E13=\"+\",\"+\",SUM(F13:T13)-U13-W13))","v":32},{"$f":"IF(E13=\"Группа\",\"Группа\",IF(E13=\"+\",\"+\",E13*X13))","v":1440}]
[5,null,null,null,null,null,null,null,null,null,null,null,null,null,null,null,null,null,null,null,null,null,null,0,0]
[6,null,null,null,null,null,null,null,null,null,null,null,null,null,null,null,null,null,null,null,null,null,null,0,0]
[7,null,null,null,null,null,null,null,null,null,null,null,null,null,null,null,null,null,null,null,null,null,null,0,0]
[8,null,null,null,null,null,null,null,null,null,null,null,null,null,null,null,null,null,null,null,null,null,null,0,0]
[9,null,null,null,null,null,null,null,null,null,null,null,null,null,null,null,null,null,null,null,null,null,null,0,0]
[10,null,null,null,null,null,null,null,null,null,null,null,null,null,null,null,null,null,null,null,null,null,null,0,0]
[]
[]
[null,null,"Дополучение","№1",{"$f":"SUMPRODUCT(E10:E19,G10:G19)","v":45}]
[null,null,"Дополучение","№2",{"$f":"SUMPRODUCT(E10:E19,H10:H19)","v":90}]
[null,null,"Дополучение","№3",{"$f":"SUMPRODUCT(E10:E19,I10:I19)","v":0}]
[null,null,"Дополучение","№4",{"$f":"SUMPRODUCT(E10:E19,J10:J19)","v":225}]
[null,null,"Дополучение","№5",{"$f":"SUMPRODUCT(E10:E19,K10:K19)","v":0}]
[null,null,"Дополучение","№6",{"$f":"SUMPRODUCT(E10:E19,L10:L19)","v":0}]
[null,null,"Дополучение","№7",{"$f":"SUMPRODUCT(E10:E19,M10:M19)","v":225}]
[null,null,"Дополучение","№8",{"$f":"SUMPRODUCT(E10:E19,N10:N19)","v":0}]
[null,null,"Дополучение","№9",{"$f":"SUMPRODUCT(E10:E19,O10:O19)","v":0}]
[null,null,"Дополучение","№10",{"$f":"SUMPRODUCT(E10:E19,P10:P19)","v":450}]
[null,null,"Дополучение","№11",{"$f":"SUMPRODUCT(E10:E19,Q10:Q19)","v":450}]
[null,null,"Дополучение","№12",{"$f":"SUMPRODUCT(E10:E19,R10:R19)","v":0}]
[null,null,"Дополучение","№13",{"$f":"SUMPRODUCT(E10:E19,S10:S19)","v":0}]
[null,null,"Дополучение","№14",{"$f":"SUMPRODUCT(E10:E19,T10:T19)","v":0}]

{"sheet":"Накладная","index":1,"n_rows":77,"n_cols":25,"rows_kept":77,"cut":false,"hidden":false,"merged":[]}
[]
[{"$f":"Y20","v":225},{"$f":"\"Товарная накладная № 004 от \"&TEXT(TODAY(),\"[$-F800]\")","v":"Товарная накладная № 004 от 24 апреля 2015 г."}]
[]
[null,"Поставщик:  Основной склад "]
[null,{"$f":"CONCATENATE(\"Получатель:  \",Инвентаризация!C3,Инвентаризация!M3)","v":"Получатель:  Магазин \"Ашан 3\""}]
[]
[]
[]
["№","Наименование товара","Код\\цвет","Опт","Цена","Принято","Кол-во","Кол-во","Кол-во","Кол-во","Кол-во","Кол-во","Кол-во","Кол-во","Кол-во","Кол-во","Кол-во","Кол-во","Кол-во","Кол-во","Брак","Переоц","Остаток","Продано","Сумма"]
[{"$f":"Инвентаризация!A10","v":1},{"$f":"Инвентаризация!B10","v":"Источники Питания:"},{"$f":"Инвентаризация!C10","v":0},{"$f":"Инвентаризация!D10","v":0},{"$f":"Инвентаризация!E10","v":"группа"},{"$f":"Инвентаризация!F10","v":0},{"$f":"Инвентаризация!G10","v":0},{"$f":"Инвентаризация!H10","v":0},{"$f":"Инвентаризация!I10","v":0},{"$f":"Инвентаризация!J10","v":0},{"$f":"Инвентаризация!K10","v":0},{"$f":"Инвентаризация!L10","v":0},{"$f":"Инвентаризация!M10","v":0},{"$f":"Инвентаризация!N10","v":0},{"$f":"Инвентаризация!O10","v":0},{"$f":"Инвентаризация!P10","v":0},{"$f":"Инвентаризация!Q10","v":0},{"$f":"Инвентаризация!R10","v":0},{"$f":"Инвентаризация!S10","v":0},{"$f":"Инвентаризация!T10","v":0},{"$f":"Инвентаризация!V10","v":0},{"$f":"Инвентаризация!V10","v":0},{"$f":"Инвентаризация!W10","v":0},{"$f":"Инвентаризация!X10","v":"Группа"},{"$f":"IF(E10=\"Группа\",\"Группа\",IF(E10=\"+\",\"+\",SumVisible(F10:X10)*E10))","v":"Группа"}]
[{"$f":"Инвентаризация!A11","v":2},{"$f":"Инвентаризация!B11","v":"Батарейки"},{"$f":"Инвентаризация!C11","v":0},{"$f":"Инвентаризация!D11","v":0},{"$f":"Инвентаризация!E11","v":"+"},{"$f":"Инвентаризация!F11","v":0},{"$f":"Инвентаризация!G11","v":0},{"$f":"Инвентаризация!H11","v":0},{"$f":"Инвентаризация!I11","v":0},{"$f":"Инвентаризация!J11","v":0},{"$f":"Инвентаризация!K11","v":0},{"$f":"Инвентаризация!L11","v":0},{"$f":"Инвентаризация!M11","v":0},{"$f":"Инвентаризация!N11","v":0},{"$f":"Инвентаризация!O11","v":0},{"$f":"Инвентаризация!P11","v":0},{"$f":"Инвентаризация!Q11","v":0},{"$f":"Инвентаризация!R11","v":0},{"$f":"Инвентаризация!S11","v":0},{"$f":"Инвентаризация!T11","v":0},{"$f":"Инвентаризация!V11","v":0},{"$f":"Инвентаризация!V11","v":0},{"$f":"Инвентаризация!W11","v":0},{"$f":"Инвентаризация!X11","v":"+"},{"$f":"IF(E11=\"Группа\",\"Группа\",IF(E11=\"+\",\"+\",SumVisible(F11:X11)*E11))","v":"+"}]
[{"$f":"Инвентаризация!A12","v":3},{"$f":"Инвентаризация!B12","v":"Duracell LR06 AA "},{"$f":"Инвентаризация!C12","v":0},{"$f":"Инвентаризация!D12","v":21.5},{"$f":"Инвентаризация!E12","v":45},{"$f":"Инвентаризация!F12","v":15},{"$f":"Инвентаризация!G12","v":1},{"$f":"Инвентаризация!H12","v":0},{"$f":"Инвентаризация!I12","v":0},{"$f":"Инвентаризация!J12","v":5},{"$f":"Инвентаризация!K12","v":0},{"$f":"Инвентаризация!L12","v":0},{"$f":"Инвентаризация!M12","v":0},{"$f":"Инвентаризация!N12","v":0},{"$f":"Инвентаризация!O12","v":0},{"$f":"Инвентаризация!P12","v":10},{"$f":"Инвентаризация!Q12","v":0},{"$f":"Инвентаризация!R12","v":0},{"$f":"Инвентаризация!S12","v":0},{"$f":"Инвентаризация!T12","v":0},{"$f":"Инвентаризация!V12","v":0},{"$f":"Инвентаризация!V12","v":0},{"$f":"Инвентаризация!W12","v":0},{"$f":"Инвентаризация!X12","v":29},{"$f":"IF(E12=\"Группа\",\"Группа\",IF(E12=\"+\",\"+\",SumVisible(F12:X12)*E12))","v":225}]
[{"$f":"Инвентаризация!A13","v":4},{"$f":"Инвентаризация!B13","v":"Duracell LR03 AAA"},{"$f":"Инвентаризация!C13","v":0},{"$f":"Инвентаризация!D13","v":21.5},{"$f":"Инвентаризация!E13","v":45},{"$f":"Инвентаризация!F13","v":16},{"$f":"Инвентаризация!G13","v":0},{"$f":"Инвентаризация!H13","v":2},{"$f":"Инвентаризация!I13","v":0},{"$f":"Инвентаризация!J13","v":0},{"$f":"Инвентаризация!K13","v":0},{"$f":"Инвентаризация!L13","v":0},{"$f":"Инвентаризация!M13","v":5},{"$f":"Инвентаризация!N13","v":0},{"$f":"Инвентаризация!O13","v":0},{"$f":"Инвентаризация!P13","v":0},{"$f":"Инвентаризация!Q13","v":10},{"$f":"Инвентаризация!R13","v":0},{"$f":"Инвентаризация!S13","v":0},{"$f":"Инвентаризация!T13","v":0},{"$f":"Инвентаризация!V13","v":0},{"$f":"Инвентаризация!V13","v":0},{"$f":"Инвентаризация!W13","v":0},{"$f":"Инвентаризация!X13","v":32},{"$f":"IF(E13=\"Группа\",\"Группа\",IF(E13=\"+\",\"+\",SumVisible(F13:X13)*E13))","v":0}]
[{"$f":"Инвентаризация!A14","v":5},{"$f":"Инвентаризация!B14","v":0},{"$f":"Инвентаризация!C14","v":0},{"$f":"Инвентаризация!D14","v":0},{"$f":"Инвентаризация!E14","v":0},{"$f":"Инвентаризация!F14","v":0},{"$f":"Инвентаризация!G14","v":0},{"$f":"Инвентаризация!H14","v":0},{"$f":"Инвентаризация!I14","v":0},{"$f":"Инвентаризация!J14","v":0},{"$f":"Инвентаризация!K14","v":0},{"$f":"Инвентаризация!L14","v":0},{"$f":"Инвентаризация!M14","v":0},{"$f":"Инвентаризация!N14","v":0},{"$f":"Инвентаризация!O14","v":0},{"$f":"Инвентаризация!P14","v":0},{"$f":"Инвентаризация!Q14","v":0},{"$f":"Инвентаризация!R14","v":0},{"$f":"Инвентаризация!S14","v":0},{"$f":"Инвентаризация!T14","v":0},{"$f":"Инвентаризация!V14","v":0},{"$f":"Инвентаризация!V14","v":0},{"$f":"Инвентаризация!W14","v":0},{"$f":"Инвентаризация!X14","v":0},{"$f":"IF(E14=\"Группа\",\"Группа\",IF(E14=\"+\",\"+\",SumVisible(F14:X14)*E14))","v":0}]
[{"$f":"Инвентаризация!A15","v":6},{"$f":"Инвентаризация!B15","v":0},{"$f":"Инвентаризация!C15","v":0},{"$f":"Инвентаризация!D15","v":0},{"$f":"Инвентаризация!E15","v":0},{"$f":"Инвентаризация!F15","v":0},{"$f":"Инвентаризация!G15","v":0},{"$f":"Инвентаризация!H15","v":0},{"$f":"Инвентаризация!I15","v":0},{"$f":"Инвентаризация!J15","v":0},{"$f":"Инвентаризация!K15","v":0},{"$f":"Инвентаризация!L15","v":0},{"$f":"Инвентаризация!M15","v":0},{"$f":"Инвентаризация!N15","v":0},{"$f":"Инвентаризация!O15","v":0},{"$f":"Инвентаризация!P15","v":0},{"$f":"Инвентаризация!Q15","v":0},{"$f":"Инвентаризация!R15","v":0},{"$f":"Инвентаризация!S15","v":0},{"$f":"Инвентаризация!T15","v":0},{"$f":"Инвентаризация!V15","v":0},{"$f":"Инвентаризация!V15","v":0},{"$f":"Инвентаризация!W15","v":0},{"$f":"Инвентаризация!X15","v":0},{"$f":"IF(E15=\"Группа\",\"Группа\",IF(E15=\"+\",\"+\",SumVisible(F15:X15)*E15))","v":0}]
[{"$f":"Инвентаризация!A16","v":7},{"$f":"Инвентаризация!B16","v":0},{"$f":"Инвентаризация!C16","v":0},{"$f":"Инвентаризация!D16","v":0},{"$f":"Инвентаризация!E16","v":0},{"$f":"Инвентаризация!F16","v":0},{"$f":"Инвентаризация!G16","v":0},{"$f":"Инвентаризация!H16","v":0},{"$f":"Инвентаризация!I16","v":0},{"$f":"Инвентаризация!J16","v":0},{"$f":"Инвентаризация!K16","v":0},{"$f":"Инвентаризация!L16","v":0},{"$f":"Инвентаризация!M16","v":0},{"$f":"Инвентаризация!N16","v":0},{"$f":"Инвентаризация!O16","v":0},{"$f":"Инвентаризация!P16","v":0},{"$f":"Инвентаризация!Q16","v":0},{"$f":"Инвентаризация!R16","v":0},{"$f":"Инвентаризация!S16","v":0},{"$f":"Инвентаризация!T16","v":0},{"$f":"Инвентаризация!V16","v":0},{"$f":"Инвентаризация!V16","v":0},{"$f":"Инвентаризация!W16","v":0},{"$f":"Инвентаризация!X16","v":0},{"$f":"IF(E16=\"Группа\",\"Группа\",IF(E16=\"+\",\"+\",SumVisible(F16:X16)*E16))","v":0}]
[{"$f":"Инвентаризация!A17","v":8},{"$f":"Инвентаризация!B17","v":0},{"$f":"Инвентаризация!C17","v":0},{"$f":"Инвентаризация!D17","v":0},{"$f":"Инвентаризация!E17","v":0},{"$f":"Инвентаризация!F17","v":0},{"$f":"Инвентаризация!G17","v":0},{"$f":"Инвентаризация!H17","v":0},{"$f":"Инвентаризация!I17","v":0},{"$f":"Инвентаризация!J17","v":0},{"$f":"Инвентаризация!K17","v":0},{"$f":"Инвентаризация!L17","v":0},{"$f":"Инвентаризация!M17","v":0},{"$f":"Инвентаризация!N17","v":0},{"$f":"Инвентаризация!O17","v":0},{"$f":"Инвентаризация!P17","v":0},{"$f":"Инвентаризация!Q17","v":0},{"$f":"Инвентаризация!R17","v":0},{"$f":"Инвентаризация!S17","v":0},{"$f":"Инвентаризация!T17","v":0},{"$f":"Инвентаризация!V17","v":0},{"$f":"Инвентаризация!V17","v":0},{"$f":"Инвентаризация!W17","v":0},{"$f":"Инвентаризация!X17","v":0},{"$f":"IF(E17=\"Группа\",\"Группа\",IF(E17=\"+\",\"+\",SumVisible(F17:X17)*E17))","v":0}]
[{"$f":"Инвентаризация!A18","v":9},{"$f":"Инвентаризация!B18","v":0},{"$f":"Инвентаризация!C18","v":0},{"$f":"Инвентаризация!D18","v":0},{"$f":"Инвентаризация!E18","v":0},{"$f":"Инвентаризация!F18","v":0},{"$f":"Инвентаризация!G18","v":0},{"$f":"Инвентаризация!H18","v":0},{"$f":"Инвентаризация!I18","v":0},{"$f":"Инвентаризация!J18","v":0},{"$f":"Инвентаризация!K18","v":0},{"$f":"Инвентаризация!L18","v":0},{"$f":"Инвентаризация!M18","v":0},{"$f":"Инвентаризация!N18","v":0},{"$f":"Инвентаризация!O18","v":0},{"$f":"Инвентаризация!P18","v":0},{"$f":"Инвентаризация!Q18","v":0},{"$f":"Инвентаризация!R18","v":0},{"$f":"Инвентаризация!S18","v":0},{"$f":"Инвентаризация!T18","v":0},{"$f":"Инвентаризация!V18","v":0},{"$f":"Инвентаризация!V18","v":0},{"$f":"Инвентаризация!W18","v":0},{"$f":"Инвентаризация!X18","v":0},{"$f":"IF(E18=\"Группа\",\"Группа\",IF(E18=\"+\",\"+\",SumVisible(F18:X18)*E18))","v":0}]
[{"$f":"Инвентаризация!A19","v":10},{"$f":"Инвентаризация!B19","v":0},{"$f":"Инвентаризация!C19","v":0},{"$f":"Инвентаризация!D19","v":0},{"$f":"Инвентаризация!E19","v":0},{"$f":"Инвентаризация!F19","v":0},{"$f":"Инвентаризация!G19","v":0},{"$f":"Инвентаризация!H19","v":0},{"$f":"Инвентаризация!I19","v":0},{"$f":"Инвентаризация!J19","v":0},{"$f":"Инвентаризация!K19","v":0},{"$f":"Инвентаризация!L19","v":0},{"$f":"Инвентаризация!M19","v":0},{"$f":"Инвентаризация!N19","v":0},{"$f":"Инвентаризация!O19","v":0},{"$f":"Инвентаризация!P19","v":0},{"$f":"Инвентаризация!Q19","v":0},{"$f":"Инвентаризация!R19","v":0},{"$f":"Инвентаризация!S19","v":0},{"$f":"Инвентаризация!T19","v":0},{"$f":"Инвентаризация!V19","v":0},{"$f":"Инвентаризация!V19","v":0},{"$f":"Инвентаризация!W19","v":0},{"$f":"Инвентаризация!X19","v":0},{"$f":"IF(E19=\"Группа\",\"Группа\",IF(E19=\"+\",\"+\",SumVisible(F19:X19)*E19))","v":0}]
[null,{"$f":"F20","v":1},null,null,"Итого:",{"$f":"SUBTOTAL(2,F10:F19)","v":1},null,null,null,null,null,null,null,null,null,null,null,null,null,null,null,null,null,null,{"$f":"SUBTOTAL(9,Y10:Y19)","v":225}]
[null,{"$f":"G21","v":1},null,null,"Итого:",null,{"$f":"SUBTOTAL(2,G10:G19)","v":1},null,null,null,null,null,null,null,null,null,null,null,null,null,null,null,null,null,{"$f":"SUBTOTAL(9,Y10:Y19)","v":225}]
[null,{"$f":"H22","v":1},null,null,"Итого:",null,null,{"$f":"SUBTOTAL(2,H10:H19)","v":1},null,null,null,null,null,null,null,null,null,null,null,null,null,null,null,null,{"$f":"SUBTOTAL(9,Y10:Y19)","v":225}]
[null,{"$f":"I23","v":1},null,null,"Итого:",null,null,null,{"$f":"SUBTOTAL(2,I10:I19)","v":1},null,null,null,null,null,null,null,null,null,null,null,null,null,null,null,{"$f":"SUBTOTAL(9,Y10:Y19)","v":225}]
[null,{"$f":"J24","v":1},null,null,"Итого:",null,null,null,null,{"$f":"SUBTOTAL(2,J10:J19)","v":1},null,null,null,null,null,null,null,null,null,null,null,null,null,null,{"$f":"SUBTOTAL(9,Y10:Y19)","v":225}]
[null,{"$f":"K25","v":1},null,null,"Итого:",null,null,null,null,null,{"$f":"SUBTOTAL(2,K10:K19)","v":1},null,null,null,null,null,null,null,null,null,null,null,null,null,{"$f":"SUBTOTAL(9,Y10:Y19)","v":225}]
[null,{"$f":"L26","v":1},null,null,"Итого:",null,null,null,null,null,null,{"$f":"SUBTOTAL(2,L10:L19)","v":1},null,null,null,null,null,null,null,null,null,null,null,null,{"$f":"SUBTOTAL(9,Y10:Y19)","v":225}]
[null,{"$f":"M27","v":1},null,null,"Итого:",null,null,null,null,null,null,null,{"$f":"SUBTOTAL(2,M10:M19)","v":1},null,null,null,null,null,null,null,null,null,null,null,{"$f":"SUBTOTAL(9,Y10:Y19)","v":225}]
[null,{"$f":"N28","v":1},null,null,"Итого:",null,null,null,null,null,null,null,null,{"$f":"SUBTOTAL(2,N10:N19)","v":1},null,null,null,null,null,null,null,null,null,null,{"$f":"SUBTOTAL(9,Y10:Y19)","v":225}]
[null,{"$f":"O29","v":1},null,null,"Итого:",null,null,null,null,null,null,null,null,null,{"$f":"SUBTOTAL(2,O10:O19)","v":1},null,null,null,null,null,null,null,null,null,{"$f":"SUBTOTAL(9,Y10:Y19)","v":225}]
[null,{"$f":"P30","v":1},null,null,"Итого:",null,null,null,null,null,null,null,null,null,null,{"$f":"SUBTOTAL(2,P10:P19)","v":1},null,null,null,null,null,null,null,null,{"$f":"SUBTOTAL(9,Y10:Y19)","v":225}]
[null,{"$f":"Q31","v":1},null,null,"Итого:",null,null,null,null,null,null,null,null,null,null,null,{"$f":"SUBTOTAL(2,Q10:Q19)","v":1},null,null,null,null,null,null,null,{"$f":"SUBTOTAL(9,Y10:Y19)","v":225}]
[null,{"$f":"R32","v":1},null,null,"Итого:",null,null,null,null,null,null,null,null,null,null,null,null,{"$f":"SUBTOTAL(2,R10:R19)","v":1},null,null,null,null,null,null,{"$f":"SUBTOTAL(9,Y10:Y19)","v":225}]
[null,{"$f":"S33","v":1},null,null,"Итого:",null,null,null,null,null,null,null,null,null,null,null,null,null,{"$f":"SUBTOTAL(2,S10:S19)","v":1},null,null,null,null,null,{"$f":"SUBTOTAL(9,Y10:Y19)","v":225}]
[null,{"$f":"T34","v":1},null,null,"Итого:",null,null,null,null,null,null,null,null,null,null,null,null,null,null,{"$f":"SUBTOTAL(2,T10:T19)","v":1},null,null,null,null,{"$f":"SUBTOTAL(9,Y10:Y19)","v":225}]
[null,{"$f":"U35","v":1},null,null,"Итого:",null,null,null,null,null,null,null,null,null,null,null,null,null,null,null,{"$f":"SUBTOTAL(2,U10:U19)","v":1},null,null,null,{"$f":"SUBTOTAL(9,Y10:Y19)","v":225}]
[null,{"$f":"U36","v":0},null,null,"Итого:",null,null,null,null,null,null,null,null,null,null,null,null,null,null,null,null,{"$f":"SUBTOTAL(2,V10:V19)","v":1},null,null,{"$f":"SUBTOTAL(9,Y10:Y19)","v":225}]
[null,{"$f":"W37","v":1},null,null,"Итого:",null,null,null,null,null,null,null,null,null,null,null,null,null,null,null,null,null,{"$f":"SUBTOTAL(2,W10:W19)","v":1},null,{"$f":"SUBTOTAL(9,Y10:Y19)","v":225}]
[]
[]
[null,{"$f":"CONCATENATE(B61,B60, B62,Y20,B63)","v":"наименований всего 1, на сумму  225руб."}]
[null,{"$f":"SUBSTITUTE(PROPER(INDEX(n_4,MID(TEXT(A2,n0),1,1)+1)&INDEX(n0x,MID(TEXT(A2,n0),2,1)+1,MID(TEXT(A2,n0),3,1)+1)&IF(-MID(TEXT(A2,n0),1,3),\"миллиард\"&VLOOKUP(MID(TEXT(A2,n0),3,1)*AND(MID(TEXT(A2,n0),2,1)-1),мил,2),\"\")&INDEX(n_4,MID(TEXT(A2,n0),4,1)+1)&INDEX(n0x,MID(TEXT(A2,n0),5,1)+1,MID(TEXT(A2,n0),6,1)+1)&IF(-MID(TEXT(A2,n0),4,3),\"миллион\"&VLOOKUP(MID(TEXT(A2,n0),6,1)*AND(MID(TEXT(A2,n0),5,1)-1),мил,2),\"\")&INDEX(n_4,MID(TEXT(A2,n0),7,1)+1)&INDEX(n1x,MID(TEXT(A2,n0),8,1)+1,MID(TEXT(A2,n0),9,1)+1)&IF(-MID(TEXT(A2,n0),7,3),VLOOKUP(MID(TEXT(A2,n0),9,1)*AND(MID(TEXT(A2,n0),8,1)-1),тыс,2),\"\")&INDEX(n_4,MID(TEXT(A2,n0),10,1)+1)&INDEX(n0x,MID(TEXT(A2,n0),11,1)+1,MID(TEXT(A2,n0),12,1)+1)),\"z\",\" \")&IF(TRUNC(TEXT(A2,n0)),\"\",\"Ноль \")&\"рубл\"&VLOOKUP(MOD(MAX(MOD(MID(TEXT(A2,n0),11,2)-11,100),9),10),{0,\"ь \";1,\"я \";4,\"ей \"},2)&RIGHT(TEXT(A2,n0),2)&\" копе\"&VLOOKUP(MOD(MAX(MOD(RIGHT(TEXT(A2,n0),2)-11,100),9),10),{0,\"йка\";1,\"йки\";4,\"ек\"},2)","v":"Двести двадцать пять рублей 00 копеек"}]
[]
[]
[]
[]
["Отпустил   ______________________                                                                                                                Получил    ______________________ "]
[]
[]
[]
[]
[]
[]
[]
[]
[]
[]
[]
[]
[]
[null,{"$f":"SUBTOTAL(9,B20:B37)","v":1}]
[null,"наименований всего "]
[null,", на сумму  "]
[null,"руб."]
[]
[]
[]
[]
[null,"={\"\";\"одинz\";\"дваz\";\"триz\";\"четыреz\";\"пятьz\";\"шестьz\";\"семьz\";\"восемьz\";\"девятьz\"}"]
[null,"={\"десятьz\";\"одиннадцатьz\";\"двенадцатьz\";\"тринадцатьz\";\"четырнадцатьz\";\"пятнадцатьz\";\"шестнадцатьz\";\"семнадцатьz\";\"восемнадцатьz\";\"девятнадцатьz\"}"]
[null,"={\"\":1:\"двадцатьz\":\"тридцатьz\":\"сорокz\":\"пятьдесятz\":\"шестьдесятz\":\"семьдесятz\":\"восемьдесятz\":\"девяностоz\"}"]
[null,"={\"\";\"стоz\";\"двестиz\";\"тристаz\";\"четырестаz\";\"пятьсотz\";\"шестьсотz\";\"семьсотz\";\"восемьсотz\";\"девятьсотz\"}"]
[null,"={\"\";\"однаz\";\"двеz\";\"триz\";\"четыреz\";\"пятьz\";\"шестьz\";\"семьz\";\"восемьz\";\"девятьz\"}"]
[null,"=\"000000000000\"&ПСТР(1/2;2;1)&\"00\""]
[null,"=ЕСЛИ(n_3=1;n_2;n_3&n_1)"]
[null,"=ЕСЛИ(n_3=1;n_2;n_3&n_5)"]
[null,"={0;\"овz\":1;\"z\":2;\"аz\":5;\"овz\"}"]
[null,"={0;\"тысячz\":1;\"тысячаz\":2;\"тысячиz\":5;\"тысячz\"}"]

{"sheet":"Отчет","index":2,"n_rows":0,"n_cols":0,"rows_kept":0,"cut":false,"hidden":false,"merged":[]}